{"text_format":"3","workbook":"xlsx","n_sheets":1,"sheets":["DATI DI ZUCCHERO NEL SANGUE"],"not_rendered":{"charts":1,"defined_names":2},"read":"whole","date_system":"1900"}

{"sheet":"DATI DI ZUCCHERO NEL SANGUE","index":0,"n_rows":29,"n_cols":6,"rows_kept":29,"merged":[[2,1,3,4]]}
[null,"RILEVATORE DI ZUCCHERO NEL SANGUE"]
[null,"GRAFICO ANDAMENTO"]
[null,"Il grafico a linee che tiene traccia dello zucchero nel sangue con una media consecutiva si trova in questa cella."]
[{"$nulls":5},"INFORMAZIONI: I livelli di zucchero nel sangue variano in base alla persona.  Mantenerli nell'intervallo normale dipende da diversi fattori e non si basa solo sull’assunzione di zucchero.  Per altre informazioni o un follow-up, consultare un medico."]
[null,"IMMISSIONE DATI"]
[]
[null,"DATA","ORA","ZUCCHERO NEL SANGUE (mg/dL)","MEDIA CONSECUTIVA"]
[null,{"$f":"TODAY()-6","v":"2018-11-13"},"08:45:00",126,{"$f":"IFERROR(AVERAGE(INDEX(ZuccheroSangue[ZUCCHERO NEL SANGUE (mg/dL)],1,1):ZuccheroSangue[[#This Row],[ZUCCHERO NEL SANGUE (mg/dL)]]), \"\")","v":{"v":126,"d":"126.0"}}]
[null,"2018-11-13","12:30:00",115,{"$f":"IFERROR(AVERAGE(INDEX(ZuccheroSangue[ZUCCHERO NEL SANGUE (mg/dL)],1,1):ZuccheroSangue[[#This Row],[ZUCCHERO NEL SANGUE (mg/dL)]]), \"\")","v":120.5}]
[null,{"$f":"TODAY()-6","v":"2018-11-13"},"19:15:00",100,{"$f":"IFERROR(AVERAGE(INDEX(ZuccheroSangue[ZUCCHERO NEL SANGUE (mg/dL)],1,1):ZuccheroSangue[[#This Row],[ZUCCHERO NEL SANGUE (mg/dL)]]), \"\")","v":{"v":113.66666666666667,"d":"113.7"}}]
[null,{"$f":"TODAY()-5","v":"2018-11-14"},"08:00:00",132,{"$f":"IFERROR(AVERAGE(INDEX(ZuccheroSangue[ZUCCHERO NEL SANGUE (mg/dL)],1,1):ZuccheroSangue[[#This Row],[ZUCCHERO NEL SANGUE (mg/dL)]]), \"\")","v":{"v":118.25,"d":"118.3"}}]
[null,"2018-11-14","12:15:00",100,{"$f":"IFERROR(AVERAGE(INDEX(ZuccheroSangue[ZUCCHERO NEL SANGUE (mg/dL)],1,1):ZuccheroSangue[[#This Row],[ZUCCHERO NEL SANGUE (mg/dL)]]), \"\")","v":114.6}]
[null,{"$f":"TODAY()-5","v":"2018-11-14"},"18:45:00",112,{"$f":"IFERROR(AVERAGE(INDEX(ZuccheroSangue[ZUCCHERO NEL SANGUE (mg/dL)],1,1):ZuccheroSangue[[#This Row],[ZUCCHERO NEL SANGUE (mg/dL)]]), \"\")","v":{"v":114.16666666666667,"d":"114.2"}}]
[null,{"$f":"TODAY()-4","v":"2018-11-15"},"07:30:00",117,{"$f":"IFERROR(AVERAGE(INDEX(ZuccheroSangue[ZUCCHERO NEL SANGUE (mg/dL)],1,1):ZuccheroSangue[[#This Row],[ZUCCHERO NEL SANGUE (mg/dL)]]), \"\")","v":{"v":114.57142857142857,"d":"114.6"}}]
[null,{"$f":"TODAY()-4","v":"2018-11-15"},"11:30:00",115,{"$f":"IFERROR(AVERAGE(INDEX(ZuccheroSangue[ZUCCHERO NEL SANGUE (mg/dL)],1,1):ZuccheroSangue[[#This Row],[ZUCCHERO NEL SANGUE (mg/dL)]]), \"\")","v":{"v":114.625,"d":"114.6"}}]
[null,{"$f":"TODAY()-4","v":"2018-11-15"},"17:00:00",112,{"$f":"IFERROR(AVERAGE(INDEX(ZuccheroSangue[ZUCCHERO NEL SANGUE (mg/dL)],1,1):ZuccheroSangue[[#This Row],[ZUCCHERO NEL SANGUE (mg/dL)]]), \"\")","v":{"v":114.33333333333333,"d":"114.3"}}]
[null,{"$f":"TODAY()-3","v":"2018-11-16"},"07:30:00",120,{"$f":"IFERROR(AVERAGE(INDEX(ZuccheroSangue[ZUCCHERO NEL SANGUE (mg/dL)],1,1):ZuccheroSangue[[#This Row],[ZUCCHERO NEL SANGUE (mg/dL)]]), \"\")","v":114.9}]
[null,"2018-11-16","11:30:00",118,{"$f":"IFERROR(AVERAGE(INDEX(ZuccheroSangue[ZUCCHERO NEL SANGUE (mg/dL)],1,1):ZuccheroSangue[[#This Row],[ZUCCHERO NEL SANGUE (mg/dL)]]), \"\")","v":{"v":115.18181818181819,"d":"115.2"}}]
[null,{"$f":"TODAY()-3","v":"2018-11-16"},"17:00:00",102,{"$f":"IFERROR(AVERAGE(INDEX(ZuccheroSangue[ZUCCHERO NEL SANGUE (mg/dL)],1,1):ZuccheroSangue[[#This Row],[ZUCCHERO NEL SANGUE (mg/dL)]]), \"\")","v":{"v":114.08333333333333,"d":"114.1"}}]
[null,{"$f":"TODAY()-2","v":"2018-11-17"},"07:30:00",124,{"$f":"IFERROR(AVERAGE(INDEX(ZuccheroSangue[ZUCCHERO NEL SANGUE (mg/dL)],1,1):ZuccheroSangue[[#This Row],[ZUCCHERO NEL SANGUE (mg/dL)]]), \"\")","v":{"v":114.84615384615384,"d":"114.8"}}]
[null,"2018-11-17","11:30:00",100,{"$f":"IFERROR(AVERAGE(INDEX(ZuccheroSangue[ZUCCHERO NEL SANGUE (mg/dL)],1,1):ZuccheroSangue[[#This Row],[ZUCCHERO NEL SANGUE (mg/dL)]]), \"\")","v":{"v":113.78571428571429,"d":"113.8"}}]
[null,{"$f":"TODAY()-2","v":"2018-11-17"},"17:00:00",99,{"$f":"IFERROR(AVERAGE(INDEX(ZuccheroSangue[ZUCCHERO NEL SANGUE (mg/dL)],1,1):ZuccheroSangue[[#This Row],[ZUCCHERO NEL SANGUE (mg/dL)]]), \"\")","v":112.8}]
[null,{"$f":"TODAY()-1","v":"2018-11-18"},"07:30:00",132,{"$f":"IFERROR(AVERAGE(INDEX(ZuccheroSangue[ZUCCHERO NEL SANGUE (mg/dL)],1,1):ZuccheroSangue[[#This Row],[ZUCCHERO NEL SANGUE (mg/dL)]]), \"\")","v":{"v":114,"d":"114.0"}}]
[null,"2018-11-18","11:30:00",120,{"$f":"IFERROR(AVERAGE(INDEX(ZuccheroSangue[ZUCCHERO NEL SANGUE (mg/dL)],1,1):ZuccheroSangue[[#This Row],[ZUCCHERO NEL SANGUE (mg/dL)]]), \"\")","v":{"v":114.3529411764706,"d":"114.4"}}]
[null,{"$f":"TODAY()-1","v":"2018-11-18"},"17:00:00",100,{"$f":"IFERROR(AVERAGE(INDEX(ZuccheroSangue[ZUCCHERO NEL SANGUE (mg/dL)],1,1):ZuccheroSangue[[#This Row],[ZUCCHERO NEL SANGUE (mg/dL)]]), \"\")","v":{"v":113.55555555555556,"d":"113.6"}}]
[null,{"$f":"TODAY()","v":"2018-11-19"},"07:30:00",113,{"$f":"IFERROR(AVERAGE(INDEX(ZuccheroSangue[ZUCCHERO NEL SANGUE (mg/dL)],1,1):ZuccheroSangue[[#This Row],[ZUCCHERO NEL SANGUE (mg/dL)]]), \"\")","v":{"v":113.52631578947368,"d":"113.5"}}]
[null,{"$f":"TODAY()","v":"2018-11-19"},"12:30:00",111,{"$f":"IFERROR(AVERAGE(INDEX(ZuccheroSangue[ZUCCHERO NEL SANGUE (mg/dL)],1,1):ZuccheroSangue[[#This Row],[ZUCCHERO NEL SANGUE (mg/dL)]]), \"\")","v":113.4}]
[null,{"$f":"TODAY()","v":"2018-11-19"},"18:30:00",115,{"$f":"IFERROR(AVERAGE(INDEX(ZuccheroSangue[ZUCCHERO NEL SANGUE (mg/dL)],1,1):ZuccheroSangue[[#This Row],[ZUCCHERO NEL SANGUE (mg/dL)]]), \"\")","v":{"v":113.47619047619048,"d":"113.5"}}]
[null,{"$f":"TODAY()","v":"2018-11-19"},"18:30:00",115,{"$f":"IFERROR(AVERAGE(INDEX(ZuccheroSangue[ZUCCHERO NEL SANGUE (mg/dL)],1,1):ZuccheroSangue[[#This Row],[ZUCCHERO NEL SANGUE (mg/dL)]]), \"\")","v":{"v":113.54545454545455,"d":"113.5"}}]